Workbook

Sheet 1
A1: 阜阳市颍东区2022年生态环境执法辅助人员公开招考初选人员体检名单
A2: 序号 | B2: 岗位名称 | C2: 准考证号(笔试) | D2: 考场 | E2: 笔试成绩 | F2: 加分成绩 | G2: 最终笔试成绩 | H2: 抽签号 | I2: 面试成绩 | J2: 总成绩 | K2: 备注
A3: 1 | B3: 生态环境保护执法辅助岗位-22081501 | C3: 220815010801 | D3: 第八考场 | E3: 90.5 | G3: =E3+F3 -> 90.5 | H3: 06 | I3: 77.52 | J3: =G3*0.6+I3*0.4 -> 85.31
A4: 2 | B4: 生态环境保护执法辅助岗位-22081501 | C4: 220815010926 | D4: 第九考场 | E4: 86 | G4: =E4+F4 -> 86 | H4: 10 | I4: 70.96 | J4: =G4*0.6+I4*0.4 -> 79.98
A5: 3 | B5: 生态环境保护执法辅助岗位-22081501 | C5: 220815011330 | D5: 第十三考场 | E5: 76 | G5: =E5+F5 -> 76 | H5: 20 | I5: 75.90 | J5: =G5*0.6+I5*0.4 -> 75.96
A6: 4 | B6: 生态环境保护执法辅助岗位-22081501 | C6: 220815010304 | D6: 第三考场 | E6: 72 | G6: =E6+F6 -> 72 | H6: 19 | I6: 80.52 | J6: =G6*0.6+I6*0.4 -> 75.41
A7: 5 | B7: 生态环境保护执法辅助岗位-22081501 | C7: 220815010828 | D7: 第八考场 | E7: 77 | G7: =E7+F7 -> 77 | H7: 46 | I7: 71.88 | J7: =G7*0.6+I7*0.4 -> 74.95
A8: 6 | B8: 生态环境保护执法辅助岗位-22081501 | C8: 220815010126 | D8: 第一考场 | E8: 65 | F8: 2 | G8: =E8+F8 -> 67 | H8: 32 | I8: 79.66 | J8: =G8*0.6+I8*0.4 -> 72.06
A9: 7 | B9: 生态环境保护执法辅助岗位-22081501 | C9: 220815011419 | D9: 第十四考场 | E9: 70 | G9: =E9+F9 -> 70 | H9: 30 | I9: 72.72 | J9: =G9*0.6+I9*0.4 -> 71.09
A10: 8 | B10: 生态环境保护执法辅助岗位-22081501 | C10: 220815010127 | D10: 第一考场 | E10: 63 | F10: 2 | G10: =E10+F10 -> 65 | H10: 17 | I10: 77.06 | J10: =G10*0.6+I10*0.4 -> 69.82
A11: 9 | B11: 生态环境保护执法辅助岗位-22081501 | C11: 220815010511 | D11: 第五考场 | E11: 61 | G11: =E11+F11 -> 61 | H11: 44 | I11: 79.78 | J11: =G11*0.6+I11*0.4 -> 68.51
A12: 10 | B12: 生态环境保护执法辅助岗位-22081501 | C12: 220815010122 | D12: 第一考场 | E12: 61 | G12: =E12+F12 -> 61 | H12: 09 | I12: 78.42 | J12: =G12*0.6+I12*0.4 -> 67.97
A13: 11 | B13: 生态环境保护执法辅助岗位-22081501 | C13: 220815010818 | D13: 第八考场 | E13: 60 | G13: =E13+F13 -> 60 | H13: 25 | I13: 79.14 | J13: =G13*0.6+I13*0.4 -> 67.66
A14: 12 | B14: 生态环境保护执法辅助岗位-22081501 | C14: 220815010424 | D14: 第四考场 | E14: 60 | G14: =E14+F14 -> 60 | H14: 29 | I14: 75.38 | J14: =G14*0.6+I14*0.4 -> 66.15
A15: 13 | B15: 生态环境保护执法辅助岗位-22081501 | C15: 220815011227 | D15: 第十二考场 | E15: 59 | G15: =E15+F15 -> 59 | H15: 40 | I15: 76.32 | J15: =G15*0.6+I15*0.4 -> 65.93
A16: 14 | B16: 生态环境保护执法辅助岗位-22081501 | C16: 220815010123 | D16: 第一考场 | E16: 57 | G16: =E16+F16 -> 57 | H16: 45 | I16: 77.88 | J16: =G16*0.6+I16*0.4 -> 65.35
A17: 15 | B17: 生态环境保护执法辅助岗位-22081501 | C17: 220815011104 | D17: 第十一考场 | E17: 57 | G17: =E17+F17 -> 57 | H17: 41 | I17: 77.50 | J17: =G17*0.6+I17*0.4 -> 65.20
A18: 16 | B18: 生态环境保护执法辅助岗位-22081501 | C18: 220815010808 | D18: 第八考场 | E18: 55.5 | G18: =E18+F18 -> 55.5 | H18: 39 | I18: 79.50 | J18: =G18*0.6+I18*0.4 -> 65.10
